lending/lending_fUSD_20250917
["ID","MTS","AMOUNT","RATE_DAILY","PERIOD"]
[385877278,1758083439548,-1100.0,0.000299,10]
[385877279,1758083439565,-4000.0,0.00029957,4]
[385877280,1758083439576,-851.26773969,0.0003,14]
[385877281,1758083439586,-7315.97911659,0.00030114,2]
[385877282,1758083439595,-1000.0,0.00030121,5]
[385877283,1758083439604,-2162.83311662,0.0003013,5]
[385877284,1758083439614,-1183.70887696,0.0003013,5]
[385877285,1758083439623,-153.61701307,0.0003013,30]
[385877286,1758083439632,-652.26888194,0.0003013,2]
[385877287,1758083439642,-225912.57820956,0.0003013,4]
[385877288,1758083439652,-114869.7789249,0.00030135,2]
[385877289,1758083439661,-151.0,0.00030135,7]
[385877290,1758083439671,-151.0,0.00030135,7]
[385877291,1758083439680,-151.0,0.00030135,7]
[385877292,1758083439690,-151.0,0.00030135,7]
[385877293,1758083439699,-151.0,0.00030135,7]
[385877294,1758083439709,-151.0,0.00030135,7]
[385877295,1758083439718,-151.0,0.00030135,7]
[385877296,1758083439727,-151.0,0.00030135,7]
[385877297,1758083439737,-151.0,0.00030135,7]
[385877298,1758083439747,-151.0,0.00030135,7]
[385877299,1758083439757,-225.387877,0.00030135,7]
[385877300,1758083439767,-151.0,0.00030135,7]
[385877301,1758083439777,-225.387877,0.00030135,7]
[385877302,1758083439789,-225.387877,0.00030135,7]
[385877303,1758083439798,-225.387877,0.00030135,7]
[385877304,1758083439808,-500.0,0.00030173,5]
[385877305,1758083439818,-1000.0,0.00030221,5]
[385877306,1758083439828,-730.537,0.00030396,26]
[385877307,1758083439838,-43787.72821552,0.00030408,2]
[385877308,1758083439848,-182.27,0.00030493,2]
[385877309,1758083439857,-256.58,0.00030497,30]
[385877310,1758083439867,-400.0,0.00030532,5]
[385877311,1758083439876,-200.0,0.00030581,2]
[385877312,1758083439885,-200.0,0.00030581,2]
[385877313,1758083439895,-600.0,0.00030581,2]
[385877316,1758083439905,-151.0,0.00030581,2]
[385877317,1758083439914,-151.0,0.00030581,2]
[385877319,1758083439923,-500.0,0.00030581,2]
[385877320,1758083439933,-151.0,0.00030581,2]
[385877321,1758083439944,-500.0,0.00030581,2]
[385877322,1758083439954,-151.0,0.00030581,2]
[385877323,1758083439965,-500.0,0.00030581,2]
[385877324,1758083439975,-151.0,0.00030581,2]
[385877326,1758083439986,-500.0,0.00030581,2]
[385877327,1758083439995,-500.0,0.00030581,2]
[385877328,1758083440005,-151.0,0.00030581,2]
[385877329,1758083440015,-500.0,0.00030581,2]
[385877330,1758083440024,-151.0,0.00030581,2]
[385877331,1758083440034,-500.0,0.00030581,2]
[385877332,1758083440043,-500.0,0.00030581,2]
[385877333,1758083440052,-151.0,0.00030581,2]
[385877334,1758083440063,-500.0,0.00030581,2]
[385877335,1758083440072,-500.0,0.00030581,2]
[385877336,1758083440083,-151.0,0.00030581,2]
[385877337,1758083440093,-500.0,0.00030581,2]
[385877338,1758083440103,-151.0,0.00030581,2]
[385877339,1758083440112,-151.0,0.00030581,2]
[385877340,1758083440122,-500.0,0.00030581,2]
[385877341,1758083440132,-151.0,0.00030581,2]
[385877342,1758083440142,-527.32066613,0.00030581,2]
[385877343,1758083440151,-151.0,0.00030581,2]
[385877344,1758083440162,-151.0,0.00030581,2]
[385877345,1758083440175,-151.0,0.00030581,2]
[385877346,1758083440185,-200.0,0.00030581,2]
[385877347,1758083440194,-518.46513606,0.00030581,2]
[385877348,1758083440204,-175.9071572,0.00030581,2]
[385877349,1758083440213,-1007.97,0.000306,2]
[385877350,1758083440223,-1613.0,0.00030601,2]
[385877351,1758083440232,-1500.0,0.00030668,5]
[385877352,1758083440242,-2000.0,0.000307,2]
[385877353,1758083440252,-7315.97911659,0.00030712,2]
[385877354,1758083440261,-1500.0,0.00030768,5]
[385877355,1758083440271,-164.88,0.00030786,2]
[385877356,1758083440280,-1920.02521768,0.00030888,60]
[385877357,1758083440290,-151.0,0.00030888,7]
[385877359,1758083440301,-151.0,0.00030888,7]
[385877360,1758083440311,-283.567025,0.00030888,7]
[385877362,1758083440323,-266.884528,0.00030888,7]
[385877363,1758083440333,-214.025341,0.00030888,7]
[385877365,1758083440343,-155.57436217,0.000309,2]
[385877366,1758083440352,-155.57436208,0.000309,2]
[385877368,1758083440361,-4000.0,0.00030961,4]
[385877369,1758083440371,-155.0,0.00031,120]
[385877370,1758083440380,-25638.04050429,0.00031,120]
[385877371,1758083440389,-161.0,0.00031,120]
[385877372,1758083440399,-335.04487236,0.00031,5]
[385877373,1758083440408,-170.56,0.00031055,2]
[385877374,1758083440417,-150.0,0.00031118,7]
[385877375,1758083440427,-150.0,0.00031118,7]
[385877376,1758083440436,-150.0,0.00031118,7]
[385877378,1758083440446,-150.0,0.00031118,7]
[385877380,1758083440456,-150.0,0.00031118,7]
[385877382,1758083440465,-150.0,0.00031118,7]
[385877384,1758083440474,-150.0,0.00031118,7]
[385877385,1758083440483,-200.0,0.00031129,2]
[385877387,1758083440493,-600.0,0.00031129,2]
[385877388,1758083440503,-200.0,0.00031129,2]
[385877390,1758083440512,-2000.0,0.00031216,5]
[385877391,1758083440522,-7315.97911659,0.0003131,2]
[385877392,1758083440531,-6104.0,0.00031343,3]
[385877393,1758083440541,-152.2,0.0003139,2]
[385877394,1758083440551,-3510.82118046,0.000314,30]
[385877395,1758083440561,-256.58,0.00031486,30]
[385877396,1758083440571,-600.0,0.0003149,5]
[385877397,1758083440580,-526.0,0.000315,2]
[385877398,1758083440589,-200.0,0.00031677,2]
[385877399,1758083440599,-600.0,0.00031677,2]
[385877400,1758083440608,-200.0,0.00031677,2]
[385877401,1758083440618,-874.65834088,0.00031712,2]
[385877402,1758083440627,-571.52,0.00031735,2]
[385877403,1758083440637,-2500.0,0.00031764,5]
[385877404,1758083440647,-2000.0,0.00031816,5]
[385877405,1758083440656,-1000.0,0.00031869,2]
[385877406,1758083440666,-7315.97911659,0.00031908,2]
[385877408,1758083440676,-4000.0,0.00031965,4]
[385877410,1758083440685,-874.65834088,0.00031986,2]
[385877412,1758083440698,-1012.0,0.00032,2]
[385877414,1758083440707,-800.0,0.00032054,29]
[385877416,1758083440716,-452.382052,0.00032082,2]
[385877418,1758083440726,-4643.4118866,0.00032082,2]
[385877420,1758083440735,-181.0,0.00032125,2]
[385877422,1758083440744,-200.0,0.00032225,2]
[385877424,1758083440754,-600.0,0.00032225,2]
[385877426,1758083440763,-200.0,0.00032225,2]
[385877428,1758083440773,-874.65834088,0.00032231,2]
[385877430,1758083440783,-164.88,0.00032252,2]
[385877432,1758083440792,-181.0,0.00032269,2]
[385877434,1758083440801,-1527.14595859,0.00032312,5]
[385877436,1758083440810,-181.0,0.00032409,2]
[385877438,1758083440820,-800.0,0.00032449,5]
[385877440,1758083440830,-256.58,0.00032475,30]
[385877442,1758083440839,-421.5,0.00032477,30]
[385877444,1758083440848,-7315.97911659,0.00032506,2]
[385877446,1758083440857,-1000.0,0.00032537,2]
[385877448,1758083440867,-151.0,0.0003258,2]
[385877450,1758083440876,-150.0,0.00032596,14]
[385877452,1758083440885,-500.0,0.00032596,14]
[385877454,1758083440895,-150.0,0.00032596,14]
[385877456,1758083440904,-500.0,0.00032596,14]
[385877458,1758083440913,-207.9760814,0.00032596,14]
[385877460,1758083440922,-500.0,0.00032596,14]
[385877462,1758083440931,-500.0,0.00032596,14]
[385877464,1758083440943,-500.0,0.00032596,14]
[385877466,1758083440952,-1826.0,0.00032596,14]
[385877468,1758083440961,-500.0,0.00032596,14]
[385877470,1758083440970,-500.0,0.00032596,14]
[385877472,1758083440980,-283.75767121,0.00032596,14]
[385877474,1758083440989,-800.0,0.00032602,29]
[385877476,1758083440998,-480.2035029,0.00032624,28]
[385877478,1758083441007,-200.0,0.00032624,2]
[385877481,1758083441017,-200.0,0.00032624,2]
[385877483,1758083441026,-200.0,0.00032624,2]
[385877485,1758083441035,-516.0,0.0003268,2]
[385877487,1758083441044,-181.0,0.00032708,7]
[385877489,1758083441053,-160.87128124,0.00032714,6]
[385877491,1758083441063,-1000.0,0.00032731,2]
[385877493,1758083441072,-155.895,0.00032749,2]
[385877496,1758083441090,-162.67856595,0.0003276,4]
[385877499,1758083441107,-500.0,0.00032773,2]
[385877501,1758083441122,-200.0,0.00032773,2]
[385877504,1758083441135,-600.0,0.00032773,2]
[385877506,1758083441147,-200.0,0.00032773,2]
[385877508,1758083441160,-298.4635,0.00032825,120]
[385877511,1758083441179,-1000.0,0.0003287,2]
[385877513,1758083441193,-150.0,0.0003287,14]
[385877516,1758083441207,-500.0,0.0003287,14]
[385877518,1758083441221,-500.0,0.0003287,14]
[385877521,1758083441233,-500.0,0.0003287,14]
[385877523,1758083441248,-500.0,0.0003287,14]
[385877525,1758083441259,-500.0,0.0003287,14]
[385877528,1758083441270,-1826.0,0.0003287,14]
[385877530,1758083441284,-500.0,0.0003287,14]
[385877532,1758083441296,-500.0,0.0003287,14]
[385877535,1758083441308,-682.79038702,0.0003287,2]
[385877537,1758083441322,-181.0,0.00032893,2]
[385877540,1758083441336,-3804.5,0.000329,14]
[385877542,1758083441349,-1000.0,0.00032914,2]
[385877544,1758083441361,-571.52,0.00032925,2]
[385877547,1758083441375,-411.71217592,0.00032942,2]
[385877549,1758083441387,-200.0,0.0003295,2]
[385877552,1758083441400,-200.0,0.0003295,2]
[385877554,1758083441413,-4000.0,0.0003297,4]
[385877556,1758083441425,-501.16402208,0.00032973,5]
[385877559,1758083441437,-500.0,0.00032973,5]
[385877561,1758083441450,-500.0,0.00032973,5]
[385877564,1758083441466,-500.60846864,0.00032973,5]
[385877566,1758083441478,-500.0,0.00032973,5]
[385877569,1758083441491,-502.12885838,0.00032973,5]
[385877571,1758083441503,-501.26852534,0.00032973,5]
[385877573,1758083441513,-500.56397611,0.00032973,5]
[385877575,1758083441524,-500.0,0.00032973,5]
[385877578,1758083441535,-501.05691471,0.00032973,5]
[385877580,1758083441550,-500.0,0.00032973,5]
[385877583,1758083441563,-500.0,0.00032973,5]
[385877585,1758083441574,-167.5065993,0.00032973,5]
[385877587,1758083441584,-145676.0,0.00033,30]
[385877589,1758083441595,-159.0,0.00033,14]
[385877591,1758083441608,-160.0,0.00033,14]
[385877594,1758083441622,-151.0,0.00033,7]
[385877596,1758083441633,-151.0,0.00033,7]
[385877598,1758083441644,-516.07479255,0.00033,30]
[385877600,1758083441654,-151.0,0.00033,7]
[385877602,1758083441665,-151.495419,0.00033,7]
[385877605,1758083441676,-151.0,0.00033,7]
[385877607,1758083441688,-160.0,0.00033,14]
[385877609,1758083441700,-160.0,0.00033,14]
[385877612,1758083441711,-160.0,0.00033,14]
[385877614,1758083441722,-160.0,0.00033,14]
[385877616,1758083441733,-160.0,0.00033,14]
[385877618,1758083441745,-160.0,0.00033,14]
[385877620,1758083441756,-160.0,0.00033,14]
[385877623,1758083441768,-160.0,0.00033,14]
[385877625,1758083441779,-160.0,0.00033,14]
[385877628,1758083441797,-160.0,0.00033,14]
[385877630,1758083441808,-160.0,0.00033,14]
[385877632,1758083441819,-160.0,0.00033,14]
[385877635,1758083441832,-160.0,0.00033,14]
[385877637,1758083441844,-160.0,0.00033,14]
[385877639,1758083441855,-160.0,0.00033,14]
[385877641,1758083441867,-160.0,0.00033,14]
[385877643,1758083441878,-160.0,0.00033,14]
[385877646,1758083441889,-160.0,0.00033,14]
[385877648,1758083441900,-160.0,0.00033,14]
[385877650,1758083441912,-160.0,0.00033,14]
[385877652,1758083441923,-160.0,0.00033,14]
[385877655,1758083441935,-160.0,0.00033,14]
[385877657,1758083441946,-160.0,0.00033,14]
[385877659,1758083441958,-160.0,0.00033,14]
[385877661,1758083441969,-160.0,0.00033,14]
[385877663,1758083441980,-160.0,0.00033,14]
[385877666,1758083441991,-160.0,0.00033,14]
[385877667,1758083442003,-160.0,0.00033,14]
[385877668,1758083442013,-160.0,0.00033,14]
[385877669,1758083442024,-160.0,0.00033,14]
[385877670,1758083442035,-160.0,0.00033,14]
[385877671,1758083442046,-160.0,0.00033,14]
[385877672,1758083442057,-160.0,0.00033,14]
[385877673,1758083442069,-160.0,0.00033,14]
[385877674,1758083442080,-160.0,0.00033,14]
[385877675,1758083442091,-160.0,0.00033,14]
[385877676,1758083442103,-160.0,0.00033,14]
[385877677,1758083442114,-160.0,0.00033,14]
[385877678,1758083442126,-160.0,0.00033,14]
[385877679,1758083442138,-160.0,0.00033,14]
[385877680,1758083442151,-160.0,0.00033,14]
[385877681,1758083442162,-160.0,0.00033,14]
[385877682,1758083442178,-160.0,0.00033,14]
[385877683,1758083442189,-160.0,0.00033,14]
[385877684,1758083442201,-160.0,0.00033,14]
[385877685,1758083442212,-160.0,0.00033,14]
[385877686,1758083442224,-160.0,0.00033,14]
[385877687,1758083442236,-160.0,0.00033,14]
[385877688,1758083442251,-160.0,0.00033,14]
[385877689,1758083442264,-160.0,0.00033,14]
[385877690,1758083442275,-160.0,0.00033,14]
[385877691,1758083442289,-160.0,0.00033,14]
[385877692,1758083442301,-160.0,0.00033,14]
[385877693,1758083442312,-160.0,0.00033,14]
[385877694,1758083442324,-160.0,0.00033,14]
[385877695,1758083442335,-160.0,0.00033,14]
[385877696,1758083442348,-160.0,0.00033,14]
[385877697,1758083442361,-160.0,0.00033,14]
[385877698,1758083442374,-160.0,0.00033,14]
[385877699,1758083442387,-160.0,0.00033,14]
[385877700,1758083442401,-160.0,0.00033,14]
[385877701,1758083442414,-160.0,0.00033,14]
[385877702,1758083442426,-160.0,0.00033,14]
[385877703,1758083442440,-160.0,0.00033,14]
[385877704,1758083442457,-160.0,0.00033,14]
[385877705,1758083442472,-160.0,0.00033,14]
[385877706,1758083442486,-160.0,0.00033,14]
[385877707,1758083442499,-160.0,0.00033,14]
[385877708,1758083442512,-160.0,0.00033,14]
[385877709,1758083442525,-160.0,0.00033,14]
[385877710,1758083442538,-160.0,0.00033,14]
[385877711,1758083442550,-160.0,0.00033,14]
[385877712,1758083442568,-247.734903,0.00033,14]
[385877713,1758083442580,-500.0,0.00033005,2]
[385877714,1758083442591,-500.0,0.00033005,2]
[385877715,1758083442603,-150.0,0.00033005,2]
[385877716,1758083442615,-924.455,0.00033024,2]
[385877717,1758083442626,-150.0,0.00033024,2]
[385877718,1758083442638,-587.14935801,0.00033073,5]
[385877719,1758083442650,-500.0,0.00033073,5]
[385877720,1758083442661,-7315.97911659,0.00033104,2]
[385877721,1758083442673,-534.0,0.00033108,2]
[385877722,1758083442684,-150.0,0.00033144,14]
[385877723,1758083442696,-155.97839146,0.00033144,14]
[385877724,1758083442707,-500.0,0.00033144,14]
[385877725,1758083442719,-500.0,0.00033144,14]
[385877726,1758083442730,-500.0,0.00033144,14]
[385877727,1758083442742,-500.0,0.00033144,14]
[385877728,1758083442753,-1826.0,0.00033144,14]
[385877729,1758083442765,-500.0,0.00033144,14]
[385877730,1758083442777,-500.0,0.00033144,14]
[385877731,1758083442788,-445.20508156,0.0003315,29]
[385877732,1758083442799,-535.27,0.00033182,2]
[385877733,1758083442810,-150.216,0.00033192,2]
[385877734,1758083442822,-150.0,0.00033192,2]
[385877735,1758083442834,-181.0,0.00033193,2]
[385877736,1758083442845,-300.0,0.00033197,10]
[385877737,1758083442857,-33253.552,0.00033198,2]
[385877738,1758083442868,-1000.0,0.00033198,2]
[385877739,1758083442880,-151.0,0.00033198,7]
[385877740,1758083442891,-151.0,0.00033198,7]
[385877742,1758083442903,-151.0,0.00033198,7]
[385877744,1758083442915,-203.421266,0.00033198,7]
[385877746,1758083442926,-151.0,0.00033198,7]
[385877747,1758083442937,-164.712236,0.00033198,7]
[385877748,1758083442950,-151.0,0.00033198,7]
[385877749,1758083442961,-151.0,0.00033198,7]
[385877750,1758083442972,-151.0,0.00033198,7]
[385877751,1758083442984,-225.387877,0.00033198,7]
[385877752,1758083442995,-151.0,0.00033198,7]
[385877753,1758083443007,-225.387877,0.00033198,7]
[385877754,1758083443019,-225.387877,0.00033198,7]
[385877755,1758083443031,-225.387877,0.00033198,7]
[385877756,1758083443043,-1000.0,0.000332,2]
[385877757,1758083443056,-183.98,0.00033254,2]
[385877759,1758083443068,-501.3303592,0.00033273,5]
[385877760,1758083443080,-500.0,0.00033279,2]
[385877761,1758083443091,-500.0,0.00033279,2]
[385877762,1758083443104,-150.0,0.00033279,2]
[385877763,1758083443115,-200.0,0.0003328,2]
[385877764,1758083443127,-200.0,0.0003328,2]
[385877765,1758083443139,-919.0,0.00033298,2]
[385877766,1758083443151,-181.0,0.00033315,7]
[385877767,1758083443162,-207.4,0.0003332,2]
[385877768,1758083443176,-2231.0,0.00033321,2]
[385877769,1758083443188,-200.0,0.00033321,2]
[385877770,1758083443202,-600.0,0.00033321,2]
[385877771,1758083443213,-200.0,0.00033321,2]
[385877772,1758083443233,-1000.0,0.00033408,5]
[385877773,1758083443246,-181.0,0.0003341,2]
[385877774,1758083443260,-150.0,0.00033418,14]
[385877775,1758083443279,-461.96478205,0.00033418,14]
[385877776,1758083443293,-500.0,0.00033418,14]
[385877777,1758083443306,-500.0,0.00033418,14]
[385877778,1758083443318,-500.0,0.00033418,14]
[385877779,1758083443331,-1826.0,0.00033418,14]
[385877780,1758083443344,-500.0,0.00033418,14]
[385877781,1758083443356,-500.0,0.00033418,14]
[385877782,1758083443369,-1000.0,0.00033419,2]
[385877783,1758083443381,-501.0892335,0.00033433,5]
[385877784,1758083443394,-500.0,0.00033433,5]
[385877785,1758083443407,-150.0,0.00033441,7]
[385877786,1758083443419,-256.58,0.00033464,30]
[385877787,1758083443431,-231.57852114,0.00033521,5]
[385877788,1758083443443,-1000.0,0.00033521,5]
[385877789,1758083443456,-1425.0,0.00033522,2]
[385877790,1758083443468,-682.79038701,0.00033553,2]
[385877791,1758083443480,-500.0,0.00033553,2]
[385877792,1758083443492,-500.0,0.00033553,2]
[385877793,1758083443504,-150.0,0.00033553,2]
[385877794,1758083443515,-194.01,0.00033588,2]
[385877795,1758083443527,-155.0,0.000336,120]
[385877796,1758083443539,-200.0,0.00033613,2]
[385877797,1758083443551,-200.0,0.00033613,2]
[385877798,1758083443562,-362.0,0.00033616,2]
[385877799,1758083443574,-1425.0,0.00033619,2]
[385877800,1758083443585,-1000.0,0.00033621,5]
[385877801,1758083443597,-1000.0,0.00033627,2]
[385877802,1758083443608,-300.0,0.0003365,10]
[385877803,1758083443619,-180.13689359,0.00033651,2]
[385877804,1758083443631,-322.6107,0.00033651,2]
[385877805,1758083443643,-646.65982734,0.00033651,2]
[385877806,1758083443654,-1000.0,0.00033651,2]
[385877807,1758083443666,-1000.0,0.00033651,2]
[385877808,1758083443678,-250.0,0.00033651,2]
[385877809,1758083443689,-250.0,0.00033651,2]
[385877810,1758083443701,-1000.0,0.00033651,2]
[385877811,1758083443713,-250.0,0.00033651,2]
[385877812,1758083443724,-1000.0,0.00033651,2]
[385877813,1758083443736,-250.0,0.00033651,2]
[385877814,1758083443747,-1000.0,0.00033651,2]
[385877815,1758083443758,-250.0,0.00033651,2]
[385877816,1758083443770,-1000.0,0.00033651,2]
[385877817,1758083443782,-500.0,0.00033651,2]
[385877818,1758083443793,-250.0,0.00033651,2]
[385877819,1758083443805,-155.54787904,0.00033651,2]
[385877820,1758083443816,-1000.0,0.00033651,2]
[385877821,1758083443827,-318.69557058,0.00033651,2]
[385877822,1758083443838,-250.0,0.00033651,2]
[385877823,1758083443849,-1000.0,0.00033651,2]
[385877824,1758083443861,-250.0,0.00033651,2]
[385877825,1758083443872,-1000.0,0.00033651,2]
[385877826,1758083443883,-8565.75555911,0.00033651,2]
[385877827,1758083443895,-261.86868616,0.00033651,2]
[385877828,1758083443906,-1000.0,0.00033651,2]
[385877829,1758083443917,-1000.0,0.00033651,2]
[385877830,1758083443929,-1000.0,0.00033651,2]
[385877831,1758083443941,-1000.0,0.00033651,2]
[385877832,1758083443954,-1000.0,0.00033651,2]
[385877833,1758083443965,-151.0,0.00033651,2]
[385877834,1758083443976,-151.0,0.00033651,2]
[385877835,1758083443987,-153.55365898,0.00033651,2]
[385877836,1758083443999,-1000.0,0.00033651,2]
[385877837,1758083444010,-151.0,0.00033651,2]
[385877838,1758083444021,-1000.0,0.00033651,2]
[385877839,1758083444032,-3000.0,0.00033651,2]
[385877840,1758083444042,-1000.0,0.00033651,2]
[385877841,1758083444053,-248.71531821,0.00033651,2]
[385877842,1758083444456,-1000.0,0.00033651,2]
[385877843,1758083444484,-1000.0,0.00033651,2]
[385877844,1758083444496,-1000.0,0.00033651,2]
[385877845,1758083444505,-1000.0,0.00033651,2]
[385877846,1758083444514,-1000.0,0.00033651,2]
[385877847,1758083444523,-1000.0,0.00033651,2]
[385877848,1758083444532,-151.0,0.00033651,2]
[385877849,1758083444542,-1000.0,0.00033651,2]
[385877850,1758083444551,-1000.0,0.00033651,2]
[385877851,1758083444560,-1000.0,0.00033651,2]
[385877852,1758083444569,-500.0,0.00033651,2]
[385877853,1758083444578,-151.0,0.00033651,2]
[385877854,1758083444587,-1000.0,0.00033651,2]
[385877855,1758083444596,-500.0,0.00033651,2]
[385877856,1758083444606,-205.17427509,0.00033651,2]
[385877857,1758083444614,-500.0,0.00033651,2]
[385877858,1758083444623,-500.0,0.00033651,2]
[385877859,1758083444633,-1000.0,0.00033651,2]
[385877860,1758083444641,-500.0,0.00033651,2]
[385877861,1758083444650,-151.0,0.00033651,2]
[385877862,1758083444659,-500.0,0.00033651,2]
[385877863,1758083444668,-151.0,0.00033651,2]
[385877864,1758083444677,-500.0,0.00033651,2]
[385877865,1758083444686,-160.0,0.00033651,2]
[385877866,1758083444697,-151.0,0.00033651,2]
[385877867,1758083444707,-500.0,0.00033651,2]
[385877868,1758083444716,-151.0,0.00033651,2]
[385877869,1758083444725,-151.0,0.00033651,2]
[385877870,1758083444734,-500.0,0.00033651,2]
[385877871,1758083444743,-151.0,0.00033651,2]
[385877872,1758083444752,-500.0,0.00033651,2]
[385877873,1758083444761,-500.0,0.00033651,2]
[385877874,1758083444770,-500.0,0.00033651,2]
[385877875,1758083444780,-151.0,0.00033651,2]
[385877876,1758083444789,-500.0,0.00033651,2]
[385877877,1758083444798,-151.0,0.00033651,2]
[385877878,1758083444807,-500.0,0.00033651,2]
[385877879,1758083444817,-151.0,0.00033651,2]
[385877880,1758083444826,-500.0,0.00033651,2]
[385877881,1758083444835,-151.0,0.00033651,2]
[385877882,1758083444844,-500.0,0.00033651,2]
[385877883,1758083444853,-151.0,0.00033651,2]
[385877884,1758083444863,-500.0,0.00033651,2]
[385877885,1758083444872,-500.0,0.00033651,2]
[385877886,1758083444881,-151.0,0.00033651,2]
[385877887,1758083444890,-500.0,0.00033651,2]
[385877888,1758083444899,-500.0,0.00033651,2]
[385877889,1758083444908,-151.0,0.00033651,2]
[385877890,1758083444918,-500.0,0.00033651,2]
[385877891,1758083444927,-500.0,0.00033651,2]
[385877892,1758083444936,-500.0,0.00033651,2]
[385877893,1758083444945,-500.0,0.00033651,2]
[385877894,1758083444954,-151.0,0.00033651,2]
[385877895,1758083444963,-500.0,0.00033651,2]
[385877896,1758083444973,-152.09821391,0.00033651,2]
[385877897,1758083444982,-500.0,0.00033651,2]
[385877898,1758083444992,-500.0,0.00033651,2]
[385877899,1758083445001,-500.0,0.00033651,2]
[385877900,1758083445010,-500.0,0.00033651,2]
[385877901,1758083445019,-254.97555414,0.00033651,2]
[385877902,1758083445028,-500.0,0.00033651,2]
[385877903,1758083445037,-151.0,0.00033651,2]
[385877904,1758083445046,-500.0,0.00033651,2]
[385877905,1758083445055,-500.0,0.00033651,2]
[385877906,1758083445064,-500.0,0.00033651,2]
[385877907,1758083445073,-500.0,0.00033651,2]
[385877908,1758083445082,-500.0,0.00033651,2]
[385877909,1758083445091,-151.0,0.00033651,2]
[385877910,1758083445100,-500.0,0.00033651,2]
[385877911,1758083445109,-151.0,0.00033651,2]
[385877912,1758083445118,-500.0,0.00033651,2]
[385877913,1758083445127,-151.0,0.00033651,2]
[385877914,1758083445136,-500.0,0.00033651,2]
[385877915,1758083445145,-151.0,0.00033651,2]
[385877916,1758083445154,-500.0,0.00033651,2]
[385877917,1758083445164,-500.0,0.00033651,2]
[385877918,1758083445177,-151.0,0.00033651,2]
[385877919,1758083445186,-500.0,0.00033651,2]
[385877920,1758083445197,-151.0,0.00033651,2]
[385877921,1758083445206,-500.0,0.00033651,2]
[385877922,1758083445215,-500.0,0.00033651,2]
[385877923,1758083445226,-151.0,0.00033651,2]
[385877924,1758083445235,-500.0,0.00033651,2]
[385877925,1758083445245,-500.0,0.00033651,2]
[385877926,1758083445254,-500.0,0.00033651,2]
[385877927,1758083445262,-151.0,0.00033651,2]
[385877928,1758083445271,-151.0,0.00033651,2]
[385877929,1758083445280,-500.0,0.00033651,2]
[385877930,1758083445289,-500.0,0.00033651,2]
[385877931,1758083445298,-151.0,0.00033651,2]
[385877932,1758083445307,-151.0,0.00033651,2]
[385877933,1758083445316,-500.0,0.00033651,2]
[385877934,1758083445325,-151.0,0.00033651,2]
[385877935,1758083445334,-151.0,0.00033651,2]
[385877936,1758083445343,-151.0,0.00033651,2]
[385877937,1758083445353,-161.75609581,0.00033651,2]
[385877938,1758083445362,-151.0,0.00033651,7]